bitfinex/quotes_ETHUSD_20241203
["timestamp","ask_amount","ask_price","bid_price","bid_amount"]
[1733204914933,2.56032476,3657.7,3657.6,0.89897619]
[1733204915141,2.56032476,3657.7,3657.6,1.26229781]
[1733204915838,2.15063454,3657.7,3657.6,1.26229781]
[1733204917823,2.15063454,3657.7,3657.6,0.89897619]
[1733204918223,1.89457815,3657.7,3657.6,0.89897619]
[1733204918430,2.15052851,3657.7,3657.6,0.89897619]
[1733204918728,2.15052851,3657.7,3657.6,3.63300619]
[1733204918954,1.89457815,3657.7,3657.6,3.63300619]
[1733204919166,1.89457815,3657.7,3657.6,6.63300619]
[1733204919467,1.89457815,3657.7,3657.6,7.29630681]
[1733204924780,1.1467869,3658.2,3658.1,5.73365]
[1733204924932,1.72018035,3658.4,3658.3,6.28351]
[1733204925137,1.72018035,3658.4,3658.3,7.94865891]
[1733204925332,2.86696725,3658.7,3658.6,3.55]
[1733204925550,2.86696725,3658.7,3658.6,7.05758]
[1733204925733,8.15e-06,3658.9,3658.8,2.73313]
[1733204925948,4.74124709,3659.8,3659.0,6.48298]
[1733204925949,3.02817,3659.1,3659.0,6.48298]
[1733204926147,4.74124709,3659.8,3659.3,2.73276]
[1733204926352,4.74124709,3659.8,3659.3,8.17081576]
[1733204926640,4.74124709,3659.8,3659.3,8.57592474]
[1733204927256,4.74124709,3659.8,3659.3,8.77592474]
[1733204927471,4.74124709,3659.8,3659.7,3.71426]
[1733204927774,4.74124709,3659.8,3659.7,7.76542064]
[1733204927974,4.74124709,3659.8,3659.7,8.8252257]
[1733204928362,4.74124709,3659.8,3659.7,8.6252257]
[1733204928581,4.74124709,3659.8,3659.7,8.8252257]
[1733204928795,4.74124709,3659.8,3659.7,8.22011672]
[1733204929093,4.74124709,3659.8,3659.7,0.87785166]
[1733204929727,2.73187,3660.5,3659.7,0.87785166]
[1733204929857,2.73202,3660.3,3659.7,0.09605166]
[1733204930057,0.7802,3660.4,3659.7,0.09605166]
[1733204930258,0.7802,3660.4,3659.1,0.7818]
[1733204930503,1.33520261,3660.4,3659.8,0.09471154]
[1733204930805,2.73211,3660.2,3659.9,0.09487481]
[1733204931262,2.73211,3660.2,3659.1,0.7818]
[1733204931784,2.73211,3660.2,3659.2,0.0951621]
[1733204936944,0.7595,3660.1,3659.2,0.0951621]
[1733204937115,0.55295561,3660.0,3659.2,0.0951621]
[1733204940301,0.7595,3660.1,3659.2,0.0951621]
[1733204943537,0.25413523,3660.2,3659.4,2.73264]
[1733204943700,2.03794613,3660.3,3659.4,2.73264]
[1733204943701,2.29208136,3660.3,3659.5,0.796]
[1733204943904,2.03794613,3660.3,3659.5,0.89136586]
[1733204944319,0.7901,3660.4,3659.5,0.89136586]
[1733204944558,0.7901,3660.4,3659.6,0.36513277]
[1733204944839,0.7901,3660.4,3659.7,0.09528255]
[1733204945342,0.7901,3660.4,3659.5,0.796]
[1733204945549,0.7901,3660.4,3659.8,0.09524091]
[1733204945838,0.7901,3660.4,3659.5,0.796]
[1733204945839,0.7901,3660.4,3659.9,0.09519926]
[1733204946043,0.7901,3660.4,3659.5,0.796]
[1733204946240,0.7901,3660.4,3660.0,0.09515762]
[1733204946632,0.7901,3660.4,3659.6,0.02732178]
[1733204946940,0.7901,3660.4,3660.1,0.09511598]
[1733204947141,0.7901,3660.4,3659.6,0.35559118]
[1733204947355,0.7901,3660.4,3660.2,0.09507434]
[1733204947509,0.25459192,3660.4,3659.7,0.02732176]
[1733204947703,1.03199192,3661.0,3660.3,0.09503271]
[1733204948034,0.83166693,3661.3,3660.1,0.8189]
[1733204948035,0.25459192,3660.9,3660.4,0.02731641]
[1733204948205,0.25459192,3660.9,3660.4,0.09479468]
[1733204948404,0.25459192,3660.8,3660.4,0.41903377]
[1733204948605,0.25459192,3661.2,3660.5,0.09475305]
[1733204948806,0.25459192,3661.1,3660.6,0.7502]
[1733204949052,0.25459192,3661.2,3660.7,0.02731403]
[1733204949252,0.40734707,3661.6,3660.6,0.84491142]
[1733204949253,0.25459192,3661.3,3660.6,0.84491142]
[1733204949402,0.25459192,3661.5,3660.7,0.09466979]
[1733204949606,0.8233,3661.6,3660.6,3.48199]
[1733204949806,0.25472188,3661.5,3660.7,0.09466979]
[1733204950036,0.25472188,3661.4,3660.7,0.09466979]
[1733204950253,0.25472188,3661.5,3660.6,0.7502]
[1733204950407,1.38250861,3661.6,3660.6,0.7502]
[1733204950408,0.25472188,3661.4,3660.6,0.7502]
[1733204950731,0.25472188,3661.3,3660.6,0.7502]
[1733204950935,0.25472188,3661.2,3660.6,0.7502]
[1733204951119,1.38250861,3661.6,3660.6,0.7502]
[1733204951120,0.25472188,3661.5,3660.6,0.7502]
[1733204951751,0.25472188,3661.5,3660.7,0.09466979]
[1733204952247,0.25472188,3661.5,3660.6,0.7502]
[1733204952613,0.25472188,3661.5,3660.7,0.09466979]
[1733204953334,1.38250861,3661.6,3660.7,0.09466979]
[1733204954045,2.03794613,3661.3,3660.7,0.09466979]
[1733204955220,0.8233,3661.6,3660.7,0.09466979]
[1733204956273,3.55435,3661.6,3660.7,0.09466979]
[1733204956567,2.03794613,3661.3,3660.7,0.09466979]
[1733204956922,4.76921613,3661.3,3660.7,0.09466979]
[1733204957222,0.66377298,3661.2,3660.7,0.09466979]
[1733204957455,0.66377298,3661.1,3660.7,0.09466979]
[1733204957655,0.2552973,3661.0,3660.7,0.09466979]
[1733204957970,0.2552973,3660.9,3660.7,0.09466979]
[1733204958123,3.3264666,3660.8,3660.7,0.09466979]
[1733204958327,3.3264666,3660.8,3659.8,0.8106]
[1733204958328,1.00330228,3660.8,3659.8,0.8106]
[1733204958536,0.2552973,3660.7,3659.8,0.8106]
[1733204958738,0.22697658,3660.6,3659.9,0.09422178]
[1733204958983,0.40847568,3660.5,3659.9,0.09422178]
[1733204959273,0.40847568,3660.6,3659.9,0.09422178]
[1733204959473,0.40847568,3660.5,3659.9,0.09422178]
[1733204959648,0.40847568,3660.6,3659.9,0.09422178]
[1733204959845,2.44645314,3660.5,3659.9,0.09422178]
[1733204960052,2.7321,3660.2,3659.9,0.09422178]
[1733204960278,2.7321,3660.2,3659.5,0.8155]
[1733204960574,0.40850701,3660.2,3659.5,0.8155]
[1733204960758,0.40850701,3660.1,3659.5,0.8155]
[1733204961075,3.14054701,3660.3,3659.5,0.8155]
[1733204961274,3.14060701,3660.2,3659.5,0.8155]
[1733204961576,0.40850701,3660.1,3659.5,0.8155]
[1733204962581,0.40850701,3660.1,3659.1,0.8332]
[1733204962582,2.03794613,3660.1,3659.1,0.8332]
[1733204962784,2.86154613,3659.7,3659.1,0.8332]
[1733204962950,2.03794613,3659.7,3659.1,0.8332]
[1733204963981,2.03794613,3659.7,3659.2,0.09472247]
[1733204965151,0.40853152,3659.9,3659.2,0.09472247]
[1733204965362,3.96437152,3660.0,3659.2,0.09472247]
[1733204965562,1.94605651,3660.0,3659.2,0.09472247]
[1733204965779,2.03794613,3659.3,3659.2,0.09472247]
[1733204965950,2.03794613,3659.3,3658.1,0.8217]
[1733204966152,3.49066,3659.3,3659.2,0.09529874]
[1733204966380,0.7579,3658.7,3658.1,0.8217]
[1733204966540,0.7579,3658.7,3658.1,2.97871866]
[1733204966741,0.7579,3658.7,3658.2,0.09599296]
[1733204966742,2.03794613,3658.6,3658.2,0.09599296]
[1733204967241,2.03794613,3658.6,3658.0,20.74848656]
[1733204967441,4.77122613,3658.6,3658.3,0.09623316]
[1733204967783,4.77122613,3658.6,3658.0,20.74848656]
[1733204967972,2.73336,3658.5,3658.4,0.09619148]
[1733204968176,2.73336,3658.5,3658.0,20.74848656]
[1733204968345,2.73336,3658.5,3658.4,0.09640937]
[1733204968687,2.73344,3658.4,3658.0,20.74848656]
[1733204968981,4.77123613,3658.6,3658.0,20.74848656]
[1733204972208,2.03794613,3658.6,3658.0,20.74848656]
[1733204972409,4.77095613,3659.0,3658.1,0.78813615]
[1733204972614,2.03794613,3659.0,3658.1,0.7608]
[1733204972871,0.25445252,3659.2,3658.2,1.3381307]
[1733204973108,2.98678252,3659.9,3658.5,2.73332]
[1733204973316,4.77010613,3660.1,3658.6,0.78812674]
[1733204973517,0.25438862,3660.0,3658.8,0.7608]
[1733204973743,0.25438862,3660.0,3658.9,0.02732512]
[1733204973919,0.22052909,3660.0,3659.0,0.35213051]
[1733204974129,0.22052909,3660.0,3659.1,0.02732538]
[1733204974431,0.22052909,3660.0,3659.0,0.35213051]
[1733204975025,0.22052909,3660.0,3659.1,0.02732537]
[1733204975348,4.77010613,3660.1,3659.1,0.02732537]
[1733204975545,4.77010613,3660.1,3659.0,0.35213051]
[1733204975765,2.03794613,3660.1,3659.2,0.757]
[1733204976250,2.03794613,3660.5,3659.2,3.48983]
[1733204976409,2.03794613,3660.5,3659.3,2.76008136]
[1733204976734,2.03794613,3660.5,3659.4,3.84136814]
[1733204977447,2.03794613,3660.5,3659.5,2.75989919]
[1733204977645,2.03794613,3660.5,3659.6,3.54443]
[1733204977818,2.03794613,3660.5,3659.7,2.73245]
[1733204978009,2.03794613,3660.9,3659.8,3.54425]
[1733204978210,2.03794613,3660.9,3659.9,0.35715682]
[1733204978847,2.03794613,3660.9,3659.9,3.11678426]
[1733204979168,2.03794613,3660.9,3659.9,3.08946682]
[1733204980747,2.03794613,3660.9,3660.0,0.7749]
[1733204981113,2.03794613,3661.3,3660.1,0.02731599]
[1733204981313,2.03794613,3661.3,3660.1,0.80221599]
[1733204981541,2.03794613,3661.3,3660.1,0.7749]
[1733204981725,2.03794613,3661.3,3660.2,0.350721]
[1733204981925,2.03794613,3661.3,3660.2,0.09491644]
[1733204983338,2.73142,3661.1,3660.2,0.09491644]
[1733204986052,0.25447871,3661.0,3660.2,0.09491644]
[1733204986556,2.98596871,3661.0,3660.2,0.09491644]
[1733204986716,0.25450915,3660.9,3660.2,0.09491644]
[1733204986917,2.73135,3661.2,3660.1,0.7749]
[1733204987148,2.98594182,3661.1,3660.3,0.0948748]
[1733204987343,0.25450182,3661.0,3660.2,0.09491644]
[1733204987536,0.25450182,3661.0,3660.4,0.09483317]
[1733204987731,0.25450182,3661.0,3660.1,0.7749]
[1733204987961,0.25450182,3661.0,3660.5,0.09479154]
[1733204988320,0.25450182,3661.0,3660.1,0.7749]
[1733204988630,0.25453259,3661.0,3660.6,0.09474991]
[1733204988946,2.98603259,3661.0,3660.1,0.7749]
[1733204989258,2.7315,3661.0,3660.1,0.7749]
[1733204989822,2.03794613,3661.3,3660.1,1.125625]
[1733204989823,2.73171,3660.8,3660.1,1.125625]
[1733204990183,2.03794613,3660.9,3660.1,0.7749]
[1733204990518,2.29244709,3660.9,3660.1,0.7749]
[1733204991364,4.76927613,3661.3,3660.1,0.8306]
[1733204991666,0.25446374,3661.2,3660.1,0.8306]
[1733204991981,0.25446374,3661.2,3660.2,0.7667]
[1733204992271,4.76927613,3661.3,3660.2,1.116586]
[1733204992554,0.25443088,3661.2,3660.3,0.7667]
[1733204993613,2.29237701,3661.3,3660.3,0.7667]
[1733204993816,0.25443088,3661.2,3660.3,0.7667]
[1733204994142,4.76922613,3661.3,3660.4,0.44432637]
[1733204994357,0.25436666,3661.2,3660.4,0.44432637]
[1733204994540,0.25436645,3661.2,3660.4,0.44432637]
[1733204994734,2.03794613,3661.3,3660.4,0.44432637]
[1733204995027,2.73149,3661.1,3660.3,0.7667]
[1733204996666,4.76952613,3660.9,3660.4,0.09444037]
[1733204997053,2.03794613,3660.9,3660.3,0.7667]
[1733204997248,2.03794613,3660.9,3660.4,0.09444037]
[1733204997454,2.73134,3661.2,3660.3,0.7667]
[1733204997624,3.50352024,3661.1,3660.3,0.7667]
[1733204997935,4.76921613,3661.3,3660.5,0.8163]
[1733204998261,0.25444782,3661.2,3660.6,0.09435711]
[1733205000149,2.98578782,3661.2,3660.6,0.09435711]
[1733205000350,2.98588782,3661.1,3660.6,0.09435711]
[1733205000550,4.76951613,3660.9,3660.6,0.09435711]
[1733205000754,2.03794613,3660.9,3660.5,0.8163]
[1733205002233,2.03794613,3660.9,3660.6,0.09435711]
[1733205002562,0.25514106,3660.8,3660.5,0.8163]
[1733205002765,0.25514106,3660.7,3660.5,0.8163]
[1733205003060,2.03794613,3660.9,3660.6,0.09435711]
[1733205003262,0.2556072,3660.8,3660.6,0.09435711]
[1733205003565,4.76953613,3660.9,3660.6,0.09435711]
[1733205003566,0.2556072,3660.7,3660.6,0.09435711]
[1733205004767,0.7989341,3660.7,3660.0,0.7901]
[1733205005081,2.03794613,3660.5,3660.0,0.7901]
[1733205005247,2.73212,3660.2,3660.0,0.7901]
[1733205005448,0.25587348,3660.1,3660.0,0.7901]
[1733205006548,0.66557754,3660.1,3660.0,0.7901]
[1733205006761,0.25587348,3660.1,3660.0,0.7901]
[1733205006968,0.40970406,3660.4,3660.0,0.7901]
[1733205007161,0.256034,3660.3,3660.2,0.7757]
[1733205007785,0.40966167,3660.8,3660.3,0.7757]
[1733205007935,0.25603673,3660.7,3660.3,0.7757]
[1733205008136,0.25603673,3660.6,3660.3,0.7757]
[1733205008367,0.25603673,3660.5,3660.4,5.75923599]
[1733205008671,0.40962683,3661.2,3660.6,3.7757]
[1733205008875,2.03794613,3661.3,3660.6,3.7757]
[1733205009084,0.66562164,3661.1,3660.6,3.7757]
[1733205009284,0.66562164,3661.2,3660.6,3.7757]
[1733205009583,0.25600832,3661.0,3660.6,0.7757]
[1733205009778,0.25600832,3660.9,3660.6,1.21086236]
[1733205009977,0.25600832,3660.8,3660.6,0.7757]
[1733205010277,0.25600832,3660.7,3660.6,0.7757]
[1733205011873,4.76922613,3661.3,3660.6,0.7757]
[1733205012145,0.40950701,3661.0,3660.6,0.7757]
[1733205012351,0.66544287,3660.9,3660.6,0.7757]
[1733205012574,0.25594188,3660.8,3660.7,0.09110105]
[1733205012781,0.40949904,3661.2,3660.7,0.09110105]
[1733205013084,2.03794613,3661.3,3660.7,0.09110105]
[1733205013085,0.66543587,3661.1,3660.7,0.45096616]
[1733205013245,0.25593624,3661.0,3660.7,0.45096616]
[1733205013453,2.03794613,3661.5,3660.7,0.45096616]
[1733205013785,0.25586959,3660.9,3660.7,0.45096616]
[1733205013951,0.66526093,3661.4,3660.8,0.7791]
[1733205014147,0.66526581,3661.3,3660.8,1.17528362]
[1733205014347,0.66526581,3661.2,3660.9,0.0910178]
[1733205014546,0.25587447,3661.1,3660.9,0.0910178]
[1733205014765,0.25587447,3661.0,3660.9,0.0910178]
[1733205015095,2.03794613,3661.5,3660.9,0.0910178]
[1733205015096,0.40939134,3661.4,3660.9,0.0910178]
[1733205015248,2.03794613,3661.5,3661.0,0.36017478]
[1733205015452,2.03794613,3661.5,3661.1,0.86982587]
[1733205015960,2.03794613,3661.9,3661.1,3.60123587]
[1733205016173,2.03794613,3661.9,3661.1,3.62854407]
[1733205016381,0.25576534,3661.8,3661.2,0.7791]
[1733205016682,0.66496068,3661.7,3661.3,3.15743034]
[1733205016992,0.25575411,3661.6,3661.4,0.7844]
[1733205017161,0.25575411,3661.5,3661.4,0.7844]
[1733205017488,0.42627557,3662.2,3661.4,3.51559]
[1733205017489,0.40920657,3662.0,3661.4,3.51559]
[1733205017694,0.25562528,3661.9,3661.5,0.8063]
[1733205017896,0.25562528,3661.8,3661.5,1.19993619]
[1733205018045,0.25562528,3661.7,3661.5,0.8063]
[1733205018252,0.40920657,3662.1,3661.7,2.73095]
[1733205018550,0.42627557,3662.2,3661.7,2.73095]
[1733205018551,0.25550983,3662.0,3661.8,0.7557]
[1733205018775,0.25550983,3661.9,3661.8,0.7557]
[1733205019268,0.42627557,3662.2,3661.8,0.7557]
[1733205019269,0.25550983,3662.1,3661.8,0.7557]
[1733205019469,0.42627557,3662.2,3661.8,0.7557]
[1733205019470,0.25550983,3662.0,3661.9,0.348671]
[1733205020283,0.25550983,3662.1,3661.9,0.348671]
[1733205020495,0.42627557,3662.2,3661.9,0.348671]
[1733205020688,0.25526852,3662.1,3661.9,0.348671]
[1733205020984,0.25526852,3662.0,3661.9,0.348671]
[1733205021281,0.25526852,3662.1,3661.9,0.348671]
[1733205021489,0.42627557,3662.2,3662.0,0.3835331]
[1733205021686,0.25519138,3662.1,3662.0,0.3835331]
[1733205023166,0.42627557,3662.2,3662.0,0.3835331]
[1733205023784,0.2550507,3662.2,3662.0,0.3835331]
[1733205023986,0.2550507,3662.2,3661.8,0.7557]
[1733205024187,0.2550507,3662.6,3661.8,0.7557]
[1733205024345,0.2550507,3662.5,3661.8,0.7557]
[1733205024546,0.2550507,3662.4,3661.8,0.7557]
[1733205024786,2.44602725,3662.7,3661.8,0.7557]
[1733205024787,0.2550507,3662.3,3661.8,0.7557]
[1733205024990,0.2550507,3662.2,3661.9,0.08987778]
[1733205025166,0.2550507,3662.1,3661.9,0.08987778]
[1733205025347,0.2550507,3662.0,3660.3,0.8057]
[1733205025546,2.03794613,3661.7,3660.8,0.8057]
[1733205025788,2.29299683,3661.7,3660.8,0.8057]
[1733205025946,2.29299683,3661.7,3660.9,0.08973195]
[1733205026147,0.2550507,3661.6,3660.9,0.4551831]
[1733205026348,2.03794613,3661.3,3660.9,0.08973195]
[1733205026563,2.03794613,3661.3,3659.4,0.7721]
[1733205026564,0.8267,3661.2,3659.4,0.7721]
[1733205026769,2.03794613,3660.9,3659.7,0.54910877]
[1733205027056,2.03794613,3660.9,3659.8,3.50446]
[1733205027699,2.2930425,3660.9,3659.9,2.7323]
[1733205027994,2.03794613,3660.9,3660.0,0.40535088]
[1733205028297,2.03794613,3660.9,3660.1,0.09027356]
[1733205028500,2.29305207,3660.9,3660.1,0.09027356]
[1733205028667,0.25510594,3660.8,3660.2,3.55779599]
[1733205028869,0.4081542,3661.1,3660.2,3.55779599]
[1733205028870,0.25510594,3661.1,3660.3,0.09019029]
[1733205029055,0.25510594,3661.2,3660.4,0.02731598]
[1733205029250,0.25510594,3661.1,3660.5,0.09010702]
[1733205029485,0.25510594,3661.2,3660.5,0.09010702]
[1733205029672,0.25510594,3661.1,3660.5,0.09010702]
[1733205029930,0.25510594,3661.2,3660.5,0.09010702]
[1733205030081,0.25510594,3661.1,3660.5,0.09010702]
[1733205030268,0.25510594,3661.2,3660.5,0.09010702]
[1733205030956,0.2550982,3661.2,3660.5,0.09010702]
[1733205031398,0.2550982,3661.1,3660.5,0.09010702]
[1733205031687,0.2550982,3661.2,3660.5,0.09010702]
[1733205031992,0.2550982,3661.2,3660.6,0.753]
[1733205032491,0.2550982,3661.6,3661.0,3.48442]
[1733205032659,2.03794613,3661.7,3661.0,3.84806035]
[1733205032854,2.29304433,3661.7,3661.1,0.12450245]
[1733205033187,0.2550982,3661.6,3661.1,0.12450245]
[1733205033400,2.44610326,3662.1,3661.2,0.7998]
[1733205033551,0.25507757,3662.0,3661.2,1.20173128]
[1733205033763,0.25507757,3661.9,3661.3,0.12440882]
[1733205033997,0.25507757,3662.0,3661.3,0.12440882]
[1733205034199,0.25507757,3661.9,3661.3,0.12440882]
[1733205034400,0.25507757,3661.8,3661.2,0.7998]
[1733205034590,2.03794613,3661.9,3661.4,0.12436628]
[1733205034912,3.75358757,3661.8,3661.5,0.12432373]
[1733205035111,0.25507757,3661.7,3661.5,0.12432373]
[1733205035274,0.25507757,3661.6,3660.9,0.7998]
[1733205035479,3.90673227,3661.8,3661.0,0.12453648]
[1733205035480,0.25507757,3661.7,3661.0,0.12453648]
[1733205035808,0.25507757,3661.6,3661.0,0.49014013]
[1733205035979,0.25507757,3661.5,3661.0,0.49014013]
[1733205036184,0.25507757,3661.4,3661.0,0.49014013]
[1733205036513,2.03794613,3661.9,3661.0,0.49014013]
[1733205036514,0.25507757,3661.7,3661.0,0.49014013]
[1733205036675,0.25507757,3661.6,3661.0,0.12453648]
[1733205036872,0.25507757,3661.5,3661.0,0.12453648]
[1733205037173,0.25507757,3661.4,3661.0,2.73148]
[1733205037374,0.25507757,3661.8,3660.9,0.789]
[1733205037611,0.25507757,3661.7,3661.3,0.789]
[1733205037778,0.25507757,3661.8,3661.4,0.36448239]
[1733205037981,0.25507757,3661.7,3661.4,0.48884867]
[1733205038179,0.25507757,3661.8,3661.4,0.48884867]
[1733205038379,0.25507757,3661.7,3661.4,0.48884867]
[1733205038718,0.25507757,3661.8,3661.4,0.48884867]
[1733205039015,0.25507757,3661.7,3661.5,0.40091787]
[1733205039212,0.25507757,3661.8,3661.4,2.85555628]
[1733205039400,2.4461684,3662.3,3661.6,0.12460045]
[1733205039607,0.25529698,3662.2,3661.5,0.124643]
[1733205039928,0.25529698,3662.1,3661.6,0.12426834]
[1733205040078,0.25529698,3662.0,3661.6,0.12426834]
[1733205040278,0.25529698,3661.9,3661.6,0.36444583]
[1733205040490,0.25529698,3661.8,3661.7,0.1242258]
[1733205040722,2.4461684,3662.3,3661.7,0.1242258]
[1733205040723,2.03794613,3661.9,3661.7,0.1242258]
[1733205040919,0.25529698,3661.8,3661.7,0.1242258]
[1733205041234,0.25529698,3661.8,3661.3,0.789]
[1733205041438,2.03794613,3661.9,3661.7,0.12418323]
[1733205041617,0.25534297,3661.8,3661.3,0.789]
[1733205041807,0.25534297,3661.7,3661.3,0.789]
[1733205042006,0.25534297,3661.6,3661.3,0.789]
[1733205042229,0.25537284,3661.8,3661.3,1.141048]
[1733205042440,0.25537284,3661.7,3661.3,1.141048]
[1733205042729,2.03794613,3661.9,3661.4,0.12431086]
[1733205042933,0.25536847,3661.8,3661.4,0.12431086]
[1733205043145,0.25536847,3661.7,3661.4,0.12431086]
[1733205043324,0.40822227,3662.2,3661.4,0.52671164]
[1733205043638,0.25538164,3662.1,3661.4,3.25790164]
[1733205043835,0.25538164,3662.0,3661.4,3.25790164]
[1733205043993,0.25538164,3661.9,3661.5,2.7311]
[1733205044338,0.25538164,3661.8,3661.6,3.60619577]
[1733205044490,0.25538164,3662.2,3661.7,0.40085966]
[1733205044695,0.25538164,3662.1,3661.8,0.12414069]
[1733205044969,0.25538164,3662.0,3661.8,0.12414069]
[1733205045121,0.25538164,3661.9,3661.7,3.13182966]
[1733205045321,0.40822227,3662.4,3661.7,3.13182966]
[1733205045505,0.40822227,3662.4,3661.9,2.73081]
[1733205045707,0.25537194,3662.3,3661.8,0.7522]
[1733205045917,0.25537194,3662.2,3661.9,0.38840197]
[1733205046116,0.25537194,3662.1,3661.9,0.38840197]
[1733205046317,0.25537194,3662.0,3661.9,0.38840197]
[1733205046521,0.25537194,3662.4,3661.9,0.38840197]
[1733205046742,0.25537194,3662.3,3661.9,0.38840197]
[1733205046924,0.25537194,3662.2,3661.8,0.7522]
[1733205047127,0.25537194,3662.1,3661.8,0.7522]
[1733205047298,0.25537194,3662.0,3661.8,0.7522]
[1733205047495,0.40822227,3662.5,3661.8,0.7522]
[1733205047795,0.2553331,3662.4,3661.8,0.7522]
[1733205048009,0.2553331,3662.3,3661.9,0.348316]
[1733205048213,0.40822227,3662.5,3661.9,0.348316]
[1733205048214,0.2553331,3662.2,3661.9,0.348316]
[1733205048409,0.2553331,3662.1,3661.9,0.348316]
[1733205048610,0.2553331,3662.0,3661.9,0.348316]
[1733205048836,2.4461684,3662.6,3661.9,0.348316]
[1733205048837,0.2553331,3662.5,3661.9,0.348316]
[1733205049039,0.2553331,3662.4,3661.9,0.348316]
[1733205049260,0.2553331,3662.3,3661.9,0.348316]
[1733205049442,0.2553331,3662.2,3661.9,0.348316]
[1733205049643,0.2553331,3662.1,3661.9,0.348316]
[1733205049843,2.4461684,3662.6,3662.0,0.3831396]
[1733205050047,2.4461684,3662.6,3661.8,3.48308]
[1733205050048,0.25530458,3662.5,3661.8,3.48308]
[1733205050364,0.25530458,3662.4,3661.8,3.48308]
[1733205050559,0.25530458,3662.3,3661.8,3.48308]
[1733205050765,0.25530458,3662.2,3661.8,3.48308]
[1733205050924,0.25530458,3662.1,3661.8,3.48308]
[1733205051125,2.96261349,3662.7,3661.9,0.348308]
[1733205051325,1.60850666,3662.6,3661.9,0.348308]
[1733205051526,1.60872179,3662.5,3661.9,0.348308]
[1733205051749,0.25529266,3662.4,3661.9,0.348308]
[1733205051948,0.25529266,3662.4,3661.8,3.48308]
[1733205051949,0.25529266,3662.3,3662.0,0.3831388]
[1733205052228,0.25529266,3662.2,3662.0,0.3831388]
[1733205052527,0.25529266,3662.1,3662.0,0.3831388]
[1733205053757,0.25529266,3662.1,3661.8,0.7522]
[1733205053955,0.25529266,3662.0,3661.8,0.7522]
[1733205054152,0.25529266,3662.4,3661.8,0.7522]
[1733205054469,0.25529266,3662.3,3661.8,0.7522]
[1733205054770,1.05349266,3662.2,3661.5,0.8223]
[1733205054945,0.25529266,3662.1,3661.5,1.00010713]
[1733205055265,0.25529266,3662.0,3661.5,1.00010713]
[1733205055438,2.03794613,3662.3,3661.6,3.0]
[1733205055632,0.25529364,3662.2,3661.6,3.0]
[1733205055830,0.25529364,3662.1,3661.5,1.00010713]
[1733205056028,0.25529364,3662.0,3661.6,0.42847376]
[1733205056242,4.76847613,3662.3,3661.6,0.42847376]
[1733205056243,0.25529364,3661.9,3661.6,0.42847376]
[1733205056571,2.03794613,3662.3,3661.6,0.42847376]
[1733205056771,0.25530817,3662.2,3661.6,0.42847376]
[1733205056934,0.25530817,3662.1,3661.6,0.42847376]
[1733205057133,0.25530817,3662.0,3661.6,0.42847376]
[1733205057428,0.25530817,3661.9,3661.5,1.00010713]
[1733205057632,3.45676612,3662.3,3661.5,1.00010713]
[1733205057633,2.4461684,3662.3,3661.5,1.00010713]
[1733205057832,0.25534555,3662.2,3661.6,0.12385543]
[1733205058071,0.25534555,3662.1,3661.6,0.12385543]
[1733205058246,0.25534555,3662.0,3661.6,0.12385543]
[1733205058440,0.25534555,3661.9,3661.6,0.86471473]
[1733205058642,0.25534555,3661.8,3661.6,0.89202207]
[1733205058871,0.2554199,3662.2,3661.6,0.89202207]
[1733205059033,2.4461684,3662.3,3661.6,0.89202207]
[1733205059034,0.2554199,3662.1,3661.6,0.89202207]
[1733205059238,0.2554199,3662.0,3661.6,0.86471473]
[1733205059439,0.2554199,3661.9,3661.7,0.81493523]
[1733205059634,2.4461684,3662.3,3661.7,0.81493523]
[1733205059635,0.2554199,3661.8,3661.7,0.81493523]
[1733205060064,0.2554199,3661.8,3660.7,0.778]
[1733205060235,2.73111,3661.6,3660.7,0.778]
[1733205060441,2.29336603,3661.5,3660.7,0.778]
[1733205060668,2.29336603,3661.5,3660.4,0.778]
[1733205060669,0.7645,3661.2,3660.4,0.778]
[1733205060872,2.29336603,3661.1,3660.4,0.778]
[1733205061178,0.66364217,3661.0,3660.0,0.778]
[1733205061359,0.2554199,3660.9,3660.0,0.778]
[1733205061561,0.2554199,3660.8,3660.2,2.73208]
[1733205061730,0.2554199,3660.7,3660.2,2.75939616]
[1733205061934,0.2554199,3660.6,3660.2,2.75939616]
[1733205062181,0.40822227,3661.0,3660.2,2.75939616]
[1733205062182,0.40822227,3661.0,3660.3,3.08572962]
[1733205062377,0.40822227,3661.0,3660.4,3.5436]
[1733205062686,0.25559604,3660.9,3660.4,3.5436]
[1733205062846,0.25559604,3660.8,3660.4,3.5436]
[1733205063047,0.40822227,3661.2,3660.4,3.5436]
[1733205063247,0.25552044,3661.1,3660.5,3.38973396]
[1733205063573,0.25552044,3661.0,3660.5,0.38973396]
[1733205063733,0.25552044,3660.9,3660.5,0.38973396]
[1733205063935,0.25552044,3660.8,3660.4,0.8117]
[1733205064236,0.25545244,3661.1,3660.4,3.8117]
[1733205064434,0.25545244,3661.0,3660.4,0.8117]
[1733205064680,3.97036227,3661.3,3660.4,0.8117]
[1733205064681,0.25545244,3660.9,3660.4,0.8117]
[1733205064984,0.25545244,3660.8,3660.4,0.8117]
[1733205065185,0.25545244,3661.1,3660.5,0.02731415]
[1733205065341,0.25545244,3661.3,3661.1,0.8117]
[1733205065542,0.25545244,3661.4,3661.2,0.38162827]
[1733205065876,3.46475988,3662.2,3661.2,0.38162827]
[1733205065877,0.25545244,3661.7,3661.2,0.50552195]
[1733205066080,0.25545244,3661.6,3661.2,0.47821268]
[1733205066249,0.25545244,3661.5,3661.3,0.02730921]
[1733205066574,0.40822227,3662.0,3661.2,0.354319]
[1733205066781,0.25535291,3661.9,3661.2,0.354319]
[1733205067085,0.25535291,3661.8,3661.3,0.12422576]
[1733205067287,1.13693229,3662.0,3661.3,0.55325024]
[1733205067288,0.25535291,3661.7,3661.3,0.55325024]
[1733205067530,0.25535291,3661.6,3661.3,0.55325024]
[1733205067643,0.25535291,3661.5,3661.3,0.55325024]
[1733205067837,0.25535291,3661.4,3661.3,0.12422576]
[1733205068042,0.25535291,3661.4,3661.1,0.8117]
[1733205068341,0.25535224,3661.8,3661.2,0.12426831]
[1733205068675,0.25535224,3661.7,3661.2,0.12426831]
[1733205068882,0.25535224,3661.6,3661.2,0.12426831]
[1733205069179,0.25535224,3661.5,3661.2,0.79101314]
[1733205069540,0.25535224,3661.4,3661.2,0.79101314]
[1733205069761,0.25535379,3661.3,3661.2,0.12426831]
[1733205069977,0.25535379,3661.8,3661.2,0.12426831]
[1733205070177,0.25535379,3661.7,3661.2,0.12426831]
[1733205070486,0.25535379,3661.6,3661.2,0.12426831]
[1733205070645,0.25535379,3661.5,3661.2,0.12426831]
[1733205070849,0.25535379,3661.4,3661.2,0.12426831]
[1733205071162,0.25535379,3661.3,3661.2,0.79101914]